bitfinex-derivatives/quotes_ETHF0:USTF0_20250727
["timestamp","ask_amount","ask_price","bid_price","bid_amount"]
[1753629520350,1.1066,3802.4,3802.3,0.52581]
[1753629520550,0.2962,3802.4,3802.0,0.4308]
[1753629520750,0.52585,3802.0,3801.8,3.40244208]
[1753629521061,0.52581,3802.3,3802.2,0.52582]
[1753629521250,0.5258,3802.4,3802.3,0.5258]
[1753629521558,1.1066,3802.4,3802.2,0.52582]
[1753629521749,1.1066,3802.3,3802.2,0.52582]
[1753629522151,1.1066,3802.3,3802.2,1.35042]
[1753629522352,1.1066,3802.3,3802.2,1.63612]
[1753629522747,0.4292,3802.6,3802.5,0.52578]
[1753629522954,1.8529,3802.6,3802.5,2.08498]
[1753629523158,1.8529,3802.9,3802.8,2.08493]
[1753629523552,0.4912,3802.9,3802.8,2.37063]
[1753629523856,5.0607,3803.1,3803.0,2.08491]
[1753629525050,1.1066,3803.4,3803.3,0.52567]
[1753629525252,1.8529,3803.4,3803.3,2.08487]
[1753629525849,0.4912,3803.4,3803.3,2.37057]
[1753629526049,3.2078,3803.5,3803.4,2.37056]
[1753629526251,3.699,3803.5,3803.4,2.37056]
[1753629526453,5.0607,3803.5,3803.4,1.01676]
[1753629526661,3.4028,3803.5,3803.4,2.37056]
[1753629527048,3.2078,3803.5,3803.4,2.37056]
[1753629527253,4.2503,3804.2,3804.1,0.8287]
[1753629527456,5.0607,3804.2,3804.1,1.35426]
[1753629527954,5.0607,3804.2,3803.7,1.1103]
[1753629527955,1.1066,3804.1,3803.7,1.1103]
[1753629528161,1.8529,3803.8,3803.7,2.08481]
[1753629528458,1.8529,3803.8,3803.7,2.37051]
[1753629529257,0.988,3804.1,3804.0,0.5432]
[1753629529457,1.4237,3804.1,3804.0,2.08477]
[1753629529758,1.8529,3804.1,3804.0,2.08477]
[1753629529958,0.7463,3804.1,3803.9,0.52558]
[1753629530154,2.37847,3804.0,3803.9,21.83259045]
[1753629530555,1.8529,3804.0,3803.9,22.56719045]
[1753629530755,1.8529,3804.0,3803.9,23.39179045]
[1753629531758,1.8529,3804.0,3803.9,23.67749045]
[1753629532161,1.4237,3804.0,3803.9,23.67749045]
[1753629532363,0.8018,3804.0,3803.9,23.67749045]
[1753629532561,0.195,3804.0,3803.9,23.67749045]
[1753629533459,1.4237,3804.3,3804.2,1.26015]
[1753629533658,1.8529,3804.3,3804.2,2.37045]
[1753629533956,1.4237,3804.3,3804.2,2.37045]
[1753629534163,0.4912,3804.3,3804.2,2.37045]
[1753629534661,2.37845,3804.2,3804.1,21.309]
[1753629535555,0.7463,3803.8,3803.7,0.9564]
[1753629535760,1.8529,3803.8,3803.7,22.2644]
[1753629535959,1.8529,3803.8,3803.7,22.7555]
[1753629536159,0.195,3803.8,3803.7,2.3705]
[1753629536360,0.8104,3804.2,3803.7,2.3705]
[1753629536361,1.8529,3804.2,3804.1,2.08476]
[1753629536657,1.8529,3804.2,3804.1,2.37046]
[1753629536863,5.0607,3804.6,3804.5,2.0847]
[1753629537060,5.0607,3804.6,3804.5,2.3704]
[1753629537459,1.8529,3805.0,3804.9,0.52545]
[1753629537761,0.7391,3804.7,3804.6,2.08619]
[1753629537959,1.1918,3804.7,3804.6,2.08619]
[1753629538158,1.8499,3804.7,3804.6,2.08619]
[1753629538864,1.8573,3805.1,3805.0,2.08094]
[1753629539462,2.38272,3805.1,3805.0,1.5555]
[1753629539663,1.8573,3805.1,3805.0,2.08094]
[1753629540058,0.6581,3805.1,3805.0,2.37524]
[1753629540465,1.0992,3805.1,3805.0,2.37524]
[1753629540670,1.4046,3805.1,3805.0,2.37524]
[1753629540867,1.93002,3805.1,3805.0,2.37524]
[1753629541069,1.8573,3805.1,3805.0,2.37524]
[1753629541858,2.38272,3805.1,3805.0,1.5555]
[1753629542062,2.38272,3805.1,3805.0,2.08094]
[1753629542268,1.8573,3805.1,3805.0,2.08094]
[1753629542458,1.8573,3805.1,3805.0,2.37524]
[1753629542664,2.38272,3805.1,3805.0,2.08094]
[1753629542967,2.38272,3805.1,3804.6,21.307]
[1753629542968,1.8573,3804.7,3804.6,2.37529]
[1753629543274,1.0357,3804.7,3804.6,23.67929]
[1753629544173,0.2892,3805.1,3804.9,1.8498]
[1753629544367,0.4916,3805.1,3805.0,2.37524]
[1753629544769,2.38272,3805.1,3805.0,1.1856]
[1753629544966,0.7465,3804.7,3804.6,1.8498]
[1753629545162,1.4046,3804.7,3804.6,2.37529]
[1753629545372,1.0357,3804.7,3804.6,2.37529]
[1753629545763,1.4046,3805.0,3804.9,1.25485]
[1753629545970,1.4046,3805.0,3804.9,1.62475]
[1753629546269,1.8573,3805.0,3804.9,2.37525]
[1753629546469,1.0357,3805.0,3804.9,2.37525]
[1753629546774,1.27192,3805.2,3805.1,1.25482]
[1753629547071,2.38272,3805.2,3805.1,2.37522]
[1753629547371,1.0357,3805.2,3805.1,2.37522]
[1753629547875,5.59048,3805.4,3805.3,2.08089]
[1753629548070,5.59048,3805.4,3805.3,1.5555]
[1753629548470,5.59048,3805.4,3805.0,0.937]
[1753629548471,1.03322,3805.1,3805.0,0.937]
[1753629548670,1.8573,3805.0,3804.9,21.82644]
[1753629549071,2.38274,3805.0,3804.9,21.82644]
[1753629549271,1.8573,3805.0,3804.9,23.67624]
[1753629549564,1.8573,3805.0,3804.9,23.38194]
[1753629550167,1.8573,3805.0,3804.9,23.67624]
[1753629550369,1.0357,3805.0,3804.9,23.67624]
[1753629550569,1.0357,3805.3,3805.2,2.37521]
[1753629551375,1.4046,3805.3,3805.2,2.37521]
[1753629551578,0.797,3805.3,3805.2,2.37521]
[1753629551875,1.8573,3805.6,3805.5,2.08087]
[1753629552072,1.0357,3805.6,3805.5,2.37517]
[1753629552273,0.2024,3805.6,3805.5,2.37517]
[1753629552473,2.0573,3805.9,3805.8,1.25472]
[1753629552674,2.0573,3805.9,3805.8,2.08082]
[1753629553675,1.2357,3805.9,3805.8,2.37512]
[1753629553873,2.0573,3805.9,3805.8,1.25472]
[1753629554073,2.0573,3805.9,3805.8,1.00612]
[1753629554281,1.47182,3805.9,3805.7,21.297]
[1753629554476,1.8573,3805.8,3805.7,21.82234]
[1753629554778,0.2,3805.9,3805.8,1.25472]
[1753629555077,0.2,3805.9,3805.8,2.37512]
[1753629557473,2.0573,3805.9,3805.8,23.66912]
[1753629557670,2.0573,3805.9,3805.8,21.81932]
[1753629557875,2.0573,3805.9,3805.8,23.37482]
[1753629558372,0.2,3805.9,3805.8,23.66912]
[1753629559775,2.0573,3805.9,3805.8,23.37282]
[1753629559982,1.47181,3805.9,3805.8,21.292]
[1753629560277,0.7465,3805.7,3805.6,0.98155]
[1753629560471,0.7465,3805.7,3805.6,22.47345]
[1753629560472,1.4884,3805.7,3805.6,22.47345]
[1753629560685,1.8573,3805.7,3805.6,22.47345]
[1753629560979,2.38264,3805.7,3805.6,22.75435]
[1753629561179,1.8573,3805.3,3805.2,1.71101]
[1753629561379,1.8573,3805.3,3805.2,23.00201]
[1753629561979,1.8573,3805.3,3805.1,41.0528]
[1753629562173,2.09351,3805.2,3805.1,37.845]
[1753629562482,3.2078,3805.8,3805.5,1.8498]
[1753629562775,0.8605,3806.1,3806.0,1.2547]
[1753629562980,0.8605,3806.1,3806.0,23.6651]
[1753629563780,1.4046,3806.1,3806.0,23.6651]
[1753629563982,2.3826,3806.1,3806.0,21.29]
[1753629564172,2.3826,3806.1,3806.0,21.8153]
[1753629564485,2.38258,3806.1,3806.0,21.8153]
[1753629564685,2.38258,3806.1,3806.0,21.29]
[1753629564987,2.38264,3805.7,3805.6,1.00614]
[1753629565185,2.38264,3805.7,3805.6,22.29514]
[1753629565480,1.27189,3805.4,3805.2,0.3699]
[1753629565683,1.8573,3805.3,3805.2,2.08091]
[1753629565979,1.8573,3805.3,3805.2,23.36991]
[1753629568283,2.38269,3805.3,3804.9,0.7948]
[1753629568490,1.8478,3804.8,3804.7,5.25638]
[1753629568680,0.4442,3804.8,3804.7,26.85308]
[1753629568879,1.8478,3805.1,3805.0,0.7283]
[1753629569083,1.25242,3805.1,3805.0,21.81444]
[1753629569480,0.727,3805.1,3805.0,21.81444]
[1753629569680,1.8478,3805.1,3805.0,21.81444]
[1753629569879,1.8478,3805.1,3805.0,22.31304]
[1753629570080,1.8478,3805.1,3805.0,23.33754]
[1753629571787,2.37322,3805.1,3805.0,23.33754]
[1753629572085,1.8478,3805.1,3805.0,23.64524]
[1753629572787,2.37322,3805.1,3805.0,23.33754]
[1753629573079,2.37322,3805.1,3805.0,21.8146]
[1753629573280,1.8478,3804.8,3804.7,3.2078]
[1753629573480,2.37326,3804.8,3804.7,24.4968]
[1753629573875,1.8478,3804.4,3804.3,0.52552]
[1753629574084,1.8478,3804.4,3804.3,21.81452]
[1753629574284,1.8478,3804.4,3804.3,23.64532]
[1753629574482,0.2867,3804.7,3804.4,1.31378]
[1753629574682,0.2867,3804.7,3804.6,2.35629]
[1753629574887,4.6801,3805.1,3805.0,1.67954]
[1753629575082,1.0137,3805.1,3805.0,2.35624]
[1753629575276,0.5797,3805.3,3805.2,0.52541]
[1753629575485,0.2042,3805.3,3805.2,22.54271]
[1753629575680,0.3755,3805.6,3805.4,0.4258]
[1753629575886,0.727,3805.7,3805.6,2.35615]
[1753629576082,3.6664,3806.0,3805.9,0.7283]
[1753629576277,3.9815,3806.4,3806.3,1.25356]
[1753629576488,3.6987,3806.4,3806.3,23.64506]
[1753629576690,4.2215,3806.4,3806.3,23.64506]
[1753629576889,5.0556,3806.4,3806.3,23.33736]
[1753629577084,1.8478,3806.4,3806.3,2.04836]
[1753629577288,1.8478,3806.4,3806.3,23.33836]
[1753629577490,1.8478,3806.4,3806.3,23.64606]
[1753629577690,1.8478,3806.4,3806.3,1.8308]
[1753629577884,2.37304,3806.4,3806.3,22.0173]
[1753629578390,2.37306,3806.3,3806.2,0.52526]
[1753629578583,1.8478,3806.3,3806.2,21.81426]
[1753629578789,1.8478,3806.3,3806.2,22.96836]
[1753629579086,1.8478,3806.3,3806.2,23.64506]
[1753629579390,1.0137,3806.3,3806.2,23.64506]
[1753629579592,1.8478,3806.6,3806.5,1.44963]
[1753629579892,1.8478,3806.6,3806.5,2.04833]
[1753629580091,2.37301,3806.6,3806.5,23.33633]
[1753629580788,2.37301,3806.6,3806.5,22.31183]
[1753629580989,2.37301,3806.6,3806.5,21.288]
[1753629581896,3.11844673,3806.6,3806.5,22.01493]
[1753629582092,2.37301,3806.6,3806.5,22.53953]
[1753629582290,2.37301,3806.6,3806.5,22.96533]
[1753629582686,2.37301,3806.6,3806.5,23.33433]
[1753629582888,1.3892,3806.6,3806.5,23.64203]
[1753629583094,1.8478,3806.6,3806.5,23.64203]
[1753629583891,2.37301,3806.6,3806.5,23.64203]
[1753629584288,0.727,3806.4,3806.3,0.8676]
[1753629584495,1.3892,3806.4,3806.3,23.64106]
[1753629584696,1.8478,3806.7,3806.6,0.52521]
[1753629584896,1.0137,3806.7,3806.6,2.35601]
[1753629585098,1.0137,3806.7,3806.6,23.64101]
[1753629585295,2.373,3806.7,3806.6,23.64101]
[1753629585699,1.8478,3806.7,3806.6,23.64101]
[1753629586606,2.373,3806.7,3806.6,23.64101]
[1753629587204,2.373,3806.7,3806.6,23.33331]
[1753629587406,1.8478,3806.7,3806.6,23.33331]
[1753629589305,2.373,3806.7,3806.6,22.96431]
[1753629589498,2.373,3806.7,3806.6,21.5799]
[1753629589705,2.373,3806.7,3806.6,21.81021]
[1753629590010,2.373,3806.7,3806.6,0.52521]
[1753629590209,2.373,3806.7,3806.6,21.80721]
[1753629591411,2.373,3806.7,3806.6,1.25351]
[1753629591711,2.373,3806.7,3806.6,22.96031]
[1753629591912,2.373,3806.7,3806.6,22.95931]
[1753629592214,0.727,3806.4,3806.3,1.0973]
[1753629592405,1.8478,3806.4,3806.3,23.32836]
[1753629592710,1.8478,3806.4,3806.3,23.63606]
[1753629593101,1.3892,3806.4,3806.3,23.63606]
[1753629593304,1.0137,3806.4,3806.3,23.63606]
[1753629593506,1.8478,3806.4,3806.3,23.63606]
[1753629594109,0.2042,3806.4,3806.3,23.63606]
[1753629594308,1.8478,3806.7,3806.6,2.35601]
[1753629594513,1.8478,3806.7,3806.6,23.63501]
[1753629596015,1.3892,3806.7,3806.6,23.63501]
[1753629596310,1.0137,3806.7,3806.6,23.63501]
[1753629596716,1.8478,3806.7,3806.6,23.63501]
[1753629596916,1.1064,3806.7,3806.6,23.63501]
[1753629597306,0.018,3807.3,3807.2,0.4334]
[1753629597507,0.018,3807.3,3807.2,23.63393]
[1753629597814,1.034,3807.3,3807.2,23.63393]
[1753629598013,1.8317,3807.3,3807.2,23.63393]
[1753629598516,1.034,3807.3,3807.2,23.63393]
[1753629598717,0.018,3807.3,3807.2,23.63393]
[1753629599013,1.398,3807.3,3807.2,23.63393]
[1753629599208,0.2095,3807.3,3807.2,23.63393]
[1753629599514,0.018,3807.3,3807.2,23.63393]
[1753629600820,0.5428,3806.9,3806.8,1.70299]
[1753629601015,1.4897,3806.9,3806.8,22.97699]
[1753629601307,1.8337,3806.9,3806.8,23.62929]
[1753629602111,1.8337,3806.9,3806.6,4.52084]
[1753629602112,1.0994,3806.8,3806.6,3.2078]
[1753629602312,1.8337,3806.5,3806.4,1.24654]
[1753629602512,1.8337,3806.5,3806.4,22.52054]
[1753629602714,1.8337,3806.5,3806.4,23.33034]
[1753629603110,2.35893,3806.5,3806.4,1.5311]
[1753629603311,1.8337,3806.5,3806.4,22.97504]
[1753629603511,2.35893,3806.5,3806.4,22.51854]
[1753629604118,1.8337,3806.2,3806.0,3.2078]
[1753629604316,1.8337,3806.2,3806.0,3.7331]
[1753629604317,1.8337,3806.1,3806.0,3.7331]
[1753629604615,2.35898,3806.1,3806.0,24.4798]
[1753629605614,2.35898,3806.1,3806.0,25.0051]
[1753629606418,1.8337,3806.1,3806.0,26.5362]
[1753629606818,2.35898,3806.1,3806.0,26.5362]
[1753629608224,1.8337,3806.1,3806.0,26.5362]
[1753629609219,2.35898,3806.1,3806.0,26.5362]
[1753629610021,2.35898,3806.1,3806.0,23.3284]
[1753629610316,1.8337,3805.5,3805.4,41.8556]
[1753629610525,1.8337,3805.5,3805.4,63.65298]
[1753629611421,1.8337,3805.5,3805.4,63.95198]
[1753629612122,0.4537,3806.2,3805.9,0.7213]
[1753629612422,1.8337,3806.2,3806.1,2.35538]
[1753629612722,2.35897,3806.2,3806.1,2.35538]
[1753629612911,1.8337,3806.2,3806.1,2.35538]
[1753629613316,2.35897,3806.2,3806.1,2.35538]
[1753629613517,1.8337,3806.2,3806.1,2.35538]
[1753629613723,2.35897,3806.2,3806.1,2.35538]
[1753629614219,4.2438,3806.4,3806.3,2.35536]
[1753629614518,0.7343,3806.3,3805.9,0.4565]
[1753629614717,1.8337,3805.8,3805.7,1.70314]
[1753629614919,1.8337,3805.8,3805.4,38.5935]
[1753629615119,1.0755,3805.1,3805.0,0.52543]
[1753629615416,1.8337,3805.1,3805.0,21.79643]
[1753629615915,1.8337,3805.1,3805.0,22.97423]
[1753629616116,3.2078,3805.8,3805.0,23.1011]
[1753629616310,1.2514,3805.3,3805.2,1.24671]
[1753629616514,1.532,3805.6,3805.5,2.05647]
[1753629616813,1.8337,3805.5,3805.4,22.8011]
[1753629617013,4.1547,3805.8,3805.7,2.35544]
[1753629617319,3.701,3805.8,3805.7,2.35544]
[1753629617518,0.4932,3805.8,3805.7,2.35544]
[1753629617714,0.3017,3805.4,3805.2,3.2078]
[1753629617922,1.8337,3805.3,3805.1,21.27]
[1753629618121,0.7343,3805.1,3805.0,21.79643]
[1753629618418,1.8337,3805.1,3805.0,22.97423]
[1753629618625,1.8337,3805.1,3805.0,23.32753]
[1753629618815,1.8337,3805.1,3805.0,23.62653]
[1753629619016,2.35912,3805.1,3805.0,23.1011]
[1753629619210,2.35912,3805.1,3805.0,22.8021]
[1753629619614,2.35912,3805.1,3805.0,23.32754]
[1753629620416,2.35912,3805.1,3804.7,0.299]
[1753629620417,1.4897,3805.1,3804.7,0.4565]
[1753629620618,0.5428,3804.4,3804.2,3.2078]
[1753629620833,3.2078,3805.1,3803.9,0.1924]
[1753629620834,2.35927,3804.0,3803.9,0.1924]
[1753629621020,2.35929,3803.9,3803.8,1.37233974]
[1753629621219,1.8337,3803.9,3803.8,2.25123974]
[1753629621420,1.8337,3803.9,3803.8,23.52123974]
[1753629621822,2.35929,3803.9,3803.8,22.99563974]
[1753629622621,2.35929,3803.9,3803.8,21.94773974]
[1753629622826,2.35929,3803.9,3803.8,0.19453974]
[1753629623028,10.56709,3803.9,3803.8,0.19453974]
[1753629623229,2.3594,3803.1,3803.0,0.7473]
[1753629623425,2.3594,3803.1,3803.0,22.2097]
[1753629623817,2.3594,3803.1,3803.0,0.9397]
[1753629624017,2.35944,3802.8,3802.7,0.4832]
[1753629624222,2.35944,3802.8,3802.7,21.5638]
[1753629624424,1.8337,3802.8,3802.7,22.08955]
[1753629624729,2.35944,3802.8,3802.7,22.2127]
[1753629624928,2.35944,3802.8,3802.7,0.2908]
[1753629625129,2.35944,3802.8,3802.7,0.9397]
[1753629625525,2.35944,3802.8,3802.7,1.46545]
[1753629625724,1.8337,3802.8,3802.7,1.46545]
[1753629625929,2.35944,3802.8,3802.7,0.9397]
[1753629626130,1.8337,3802.8,3802.7,1.46545]
[1753629626325,0.4298,3802.0,3801.9,0.7555]
[1753629626522,1.8337,3802.0,3801.9,0.2908]
[1753629626722,1.62526,3801.9,3801.8,0.72052208]
[1753629626922,1.62526,3801.9,3801.8,0.19464208]
[1753629627224,1.0994,3801.9,3801.8,0.72052208]
[1753629627432,1.62526,3801.9,3801.8,0.19464208]
[1753629627623,1.62526,3801.9,3801.8,0.65114208]
[1753629627820,1.0994,3801.9,3801.8,1.17702208]
[1753629628127,1.0994,3801.9,3801.8,1.53742208]
[1753629628330,3.2078,3802.0,3801.9,1.61666]
[1753629629124,4.3143,3802.0,3801.9,1.33136]
[1753629630230,3.2078,3802.7,3802.0,1.31463]
[1753629630429,3.2078,3802.7,3801.8,25.99312208]
[1753629630430,0.2863,3802.9,3802.8,1.61654]
[1753629630627,0.2863,3802.9,3801.9,2.62934]
[1753629630628,0.52579,3802.4,3801.8,3.68774208]
[1753629630833,1.1065,3802.3,3802.2,21.80581]
[1753629631037,1.1065,3802.2,3802.1,0.52583]
[1753629631228,0.6395,3802.7,3802.6,1.33127]
[1753629631431,0.2863,3802.7,3802.6,1.61657]
[1753629632230,0.3532,3803.0,3802.9,0.52573]
[1753629632436,1.1065,3803.5,3803.3,0.52566]
[1753629632629,1.1065,3803.9,3803.4,1.0908]
[1753629632928,0.52563,3803.7,3803.6,0.8055]
[1753629633132,0.52562,3803.7,3803.6,0.52563]
[1753629633328,0.52564,3803.5,3803.4,0.8055]
[1753629633531,0.52564,3803.6,3803.5,0.52563]
[1753629633732,1.63214,3803.6,3803.5,0.52563]
[1753629634630,1.1065,3803.6,3803.5,0.52563]
[1753629634830,1.1065,3803.6,3803.5,0.97073]
[1753629635031,1.1065,3803.6,3803.5,1.33113]
[1753629635736,1.63213,3803.6,3803.5,1.33113]
[1753629636424,1.63213,3803.6,3803.5,0.97073]
[1753629637028,1.1065,3803.6,3803.5,0.97073]
[1753629637430,1.1065,3803.6,3803.5,1.33113]
[1753629637629,1.63213,3803.6,3803.5,1.33113]
[1753629638034,1.8383,3803.6,3803.5,2.04923]
[1753629638238,1.8383,3803.6,3803.5,2.33453]
[1753629638434,3.73342,3803.7,3803.6,0.52563]
[1753629638735,2.36392,3803.7,3803.6,0.4888]
[1753629638939,1.25743,3803.6,3803.5,0.52564]
[1753629639144,2.36397,3803.4,3803.3,0.52566]
[1753629640441,1.8383,3803.4,3803.3,0.52566]
[1753629640640,2.36396,3803.4,3803.3,1.45956]
[1753629640841,2.36396,3803.4,3803.3,1.68886]
[1753629642233,2.36396,3803.4,3803.3,1.01446]
[1753629642439,1.4851,3803.1,3803.0,22.96791]
[1753629642639,1.8383,3803.1,3803.0,23.32831]
[1753629642941,1.8383,3803.1,3803.0,23.61361]
[1753629643142,0.7221,3803.1,3803.0,23.61361]
[1753629644533,0.7221,3803.1,3803.0,2.33461]
[1753629645139,1.3713,3803.1,3803.0,2.33461]
[1753629645333,1.8383,3803.1,3803.0,2.33461]
[1753629645539,2.364,3803.1,3803.0,1.68891]
[1753629645739,1.8383,3803.1,3803.0,22.96791]
[1753629645934,1.8383,3803.1,3803.0,1.68891]
[1753629646443,2.36404,3802.9,3802.8,0.52573]
[1753629646645,1.8383,3802.9,3802.8,1.68893]
[1753629646841,1.8383,3802.9,3802.8,2.33463]
[1753629647039,2.36403,3802.9,3802.8,2.33463]
[1753629647234,1.8383,3802.9,3802.8,2.04933]
[1753629647434,2.36403,3802.9,3802.8,2.04933]
[1753629648346,1.8383,3802.9,3802.8,2.04933]
[1753629648543,0.7533,3802.8,3802.6,21.279]
[1753629648741,2.04615,3802.9,3802.1,3.6966]
[1753629648742,1.8383,3802.2,3802.1,3.6966]
[1753629648941,1.8383,3802.2,3802.1,5.25724]
[1753629649145,1.8383,3802.2,3802.1,5.54254]
[1753629649440,1.3713,3802.2,3802.1,5.54254]
[1753629649645,1.8383,3802.2,3802.1,5.54254]
[1753629650140,1.47711492,3803.1,3801.8,0.19464208]
[1753629650141,1.25766,3801.9,3801.8,0.19464208]
[1753629650349,2.36416,3801.9,3801.8,0.19464208]
[1753629652647,3.10165526,3801.9,3801.8,0.19464208]
[1753629653552,1.54396,3801.9,3801.8,2.52942208]
[1753629653750,2.36416,3801.9,3801.8,2.24412208]
[1753629653945,2.36416,3801.9,3801.8,0.72052208]
[1753629654146,2.36416,3801.9,3801.8,1.88372208]
[1753629654354,3.6436,3802.1,3802.0,1.24395]
[1753629654651,3.6436,3802.1,3802.0,2.33475]
[1753629654854,5.57194,3802.1,3802.0,1.68905]
[1753629655252,5.57194,3802.1,3802.0,2.04945]
[1753629655745,2.36414,3802.1,3802.0,2.04945]
[1753629658353,1.8383,3802.1,3802.0,2.04945]
[1753629658851,1.0181,3802.1,3802.0,2.35005]
[1753629659051,1.8077,3802.1,3802.0,2.35005]
[1753629659853,2.33354,3802.1,3802.0,2.35005]
[1753629660051,1.8077,3802.1,3802.0,2.35005]
[1753629660350,2.33354,3802.1,3802.0,0.81175]
[1753629660753,2.33354,3802.1,3802.0,1.66785]
[1753629660754,1.8077,3802.1,3802.0,1.66785]
[1753629660958,3.9217,3802.5,3802.4,0.83209]
[1753629661253,0.7139,3802.8,3802.7,1.25874]
[1753629661551,0.73748304,3802.8,3802.7,1.55934]
[1753629661852,0.73748304,3802.8,3802.7,2.34704]
[1753629662255,0.5,3802.8,3802.7,2.34704]
[1753629662443,0.7226,3802.8,3802.7,2.34704]
[1753629662955,0.1937,3802.8,3802.7,2.34704]
[1753629663351,0.7226,3802.8,3802.7,2.34704]
[1753629663551,1.8098,3802.8,3802.7,2.34704]
[1753629663949,0.7793,3803.3,3803.2,1.81268]
[1753629664252,1.51688268,3803.3,3803.2,2.34698]
[1753629664445,1.82318268,3803.3,3803.2,2.34698]
[1753629664846,0.73758268,3803.3,3803.2,2.34698]
[1753629665063,2.54738268,3803.3,3803.2,0.4993]
[1753629665243,2.54738268,3803.3,3803.2,0.3063]
[1753629665650,0.1937,3802.6,3802.5,22.89708]
[1753629665845,1.0856,3802.6,3802.5,23.19768]
[1753629666054,0.3063,3802.9,3802.8,1.37764]
[1753629666354,0.3063,3802.9,3802.8,2.34704]
[1753629666549,0.363,3803.0,3802.9,1.25873]
[1753629666754,0.3063,3803.2,3803.0,1.8213]
[1753629666946,0.363,3803.3,3803.2,1.02498]
[1753629667145,0.73762449,3803.3,3803.2,2.34698]
[1753629667546,3.2078,3803.8,3803.7,0.52562]
[1753629667754,6.28097147,3803.8,3803.7,1.5207]
[1753629667951,5.75537147,3803.8,3803.7,2.04632]
[1753629668152,5.75537147,3803.8,3803.7,2.34692]
[1753629668652,4.13927147,3803.8,3803.7,2.34692]
[1753629668848,3.94557147,3803.8,3803.7,2.34692]
[1753629669153,4.2934,3803.8,3803.7,2.34692]
[1753629669651,1.0856,3803.8,3803.7,2.34692]
[1753629670047,1.8098,3803.8,3803.7,2.34692]
[1753629670247,2.3354,3803.8,3803.7,0.54]
[1753629670452,2.3354,3803.8,3803.7,0.3063]
[1753629670653,2.3354,3803.8,3803.7,0.52562]
[1753629672257,5.5432,3803.8,3803.7,0.52562]
[1753629672863,5.5432,3803.8,3803.7,0.83192]
[1753629673059,5.5432,3803.8,3803.7,1.02492]
[1753629673661,2.3354,3803.8,3803.7,1.68802]
[1753629674064,5.5432,3803.8,3803.7,1.68802]
[1753629674465,2.3354,3803.8,3803.7,1.1624]
[1753629674664,2.3354,3803.8,3803.7,1.68801]
[1753629675066,2.3354,3803.8,3803.7,1.1624]
[1753629675562,2.3354,3803.8,3803.7,1.68802]
[1753629675965,1.3832,3803.8,3803.7,2.34692]
[1753629676155,1.5035,3804.1,3804.0,1.25857]
[1753629676358,1.8098,3804.1,3804.0,2.34687]
[1753629676857,2.33537,3804.1,3804.0,2.34687]
[1753629677260,1.8098,3804.1,3804.0,2.34687]
[1753629677563,1.3832,3804.1,3804.0,2.34687]
[1753629677760,3.2078,3804.2,3804.1,0.52556]
[1753629677967,3.2078,3804.2,3804.1,2.34686]
[1753629678268,3.2078,3804.6,3804.5,2.3468]
[1753629678760,3.9304,3804.6,3804.5,2.3468]
[1753629678962,4.591,3804.6,3804.5,2.3468]
[1753629679157,2.33529,3804.6,3804.5,1.2585]
[1753629679364,3.2078,3805.0,3803.8,1.31398]
[1753629679365,1.8098,3804.3,3804.2,1.45423]
[1753629679664,1.9087,3804.6,3804.5,1.2585]
[1753629679860,5.5431,3804.6,3804.5,2.0462]
[1753629680161,5.5431,3804.6,3804.5,0.3063]
[1753629680368,2.02902,3804.4,3804.3,1.25852]
[1753629680567,1.8098,3804.4,3804.3,2.34682]
[1753629680768,2.33532,3804.4,3804.3,2.34682]
[1753629680963,2.33532,3804.4,3804.3,2.04622]
[1753629681865,2.33532,3804.4,3804.3,2.04623]
[1753629682266,1.8098,3804.4,3804.3,2.04623]
[1753629683170,2.33532,3804.4,3804.3,2.04623]
[1753629683370,2.33532,3804.4,3804.3,1.68793]
[1753629684668,1.23946,3804.1,3804.0,0.88385]
[1753629684968,0.5,3804.1,3804.0,2.34685]
[1753629685171,1.8098,3804.1,3804.0,2.34685]
[1753629687370,1.3832,3804.1,3804.0,2.34685]
[1753629687664,1.4532,3804.4,3804.3,0.52553]
[1753629687866,1.796,3804.4,3804.3,2.33013]
[1753629688070,1.3694,3804.4,3804.3,2.33013]
[1753629688465,1.8234,3804.4,3804.3,2.33013]
[1753629688666,0.2883,3804.4,3804.3,2.33013]
[1753629689066,1.8234,3804.4,3804.3,2.33013]
[1753629689261,2.34892,3804.4,3804.3,2.33013]
[1753629689468,2.34892,3804.4,3804.3,0.82233]
[1753629689667,2.34892,3804.4,3804.3,0.52553]
[1753629689974,1.8234,3804.4,3804.3,2.03563]
[1753629690273,2.34892,3804.4,3804.3,2.03563]
[1753629690471,2.34892,3804.4,3804.3,1.67983]
[1753629690772,2.34892,3804.4,3804.3,0.52553]
[1753629690972,2.34892,3804.4,3804.3,1.24343]
[1753629691172,2.34892,3804.4,3804.3,1.67983]
[1753629691676,2.34892,3804.4,3804.3,2.03563]
[1753629692275,0.2883,3804.4,3804.3,2.33013]
[1753629692475,0.4937,3804.4,3804.3,2.33013]
[1753629692870,0.7291,3804.4,3804.3,2.33013]
[1753629693071,1.0719,3804.4,3804.3,2.33013]
[1753629693271,1.59742,3804.4,3804.3,2.33013]
[1753629693475,0.7291,3804.4,3804.3,2.33013]
[1753629693675,3.6486,3804.6,3804.5,1.2434]
[1753629693878,4.80519,3804.6,3804.5,2.3301]
[1753629694075,5.10269,3804.6,3804.5,2.3301]